Workbook

Sheet Function
A1: x | B1: 2
A2: F(x) | B2: =0.32*x^3-2.7*x^2+6.2*x-0.81 -> 3.35
A4: Initial Min X | B4: -3
A5: Initial Max X | B5: 7
A12: CenterX | B12: =AVERAGE(B4:B5) -> 2
A13: dX | B13: =(B5-B4)/NumberOfPoints -> 0.05
A14: Temp
A16: Trace X | B16: 100 | E16: [CenterX - NumberOfPoints/2*dX, CenterX + NumberOfPoints/2*dX]
B17: =B16*dX + CenterX - NumberOfPoints/2*dX -> 2 | E17: Step=dX
A18: Trace F(X) | B18: =LOOKUP(B17,A25:A225,B25:B225) -> 3.35
A20: Zoom Factor | B20: =2 -> 2 | E20: [2,20]
E21: Step=1
A23: Data Table: x | B23: F(x)
B24: =B2 -> 3.35
A25: =CenterX-NumberOfPoints/2*dX -> -3 | B25: -52.35
A26: =A25+dX -> -2.95 | B26: -50.81191
A27: -2.9 | B27: -49.30148
A28: -2.85 | B28: -47.81847
A29: -2.8 | B29: -46.36264
A30: -2.75 | B30: -44.93375
A31: -2.7 | B31: -43.53156
A32: -2.65 | B32: -42.15583
A33: -2.6 | B33: -40.80632
A34: -2.55 | B34: -39.48279
A35: -2.5 | B35: -38.185
A36: -2.45 | B36: -36.91271
A37: -2.4 | B37: -35.66568
A38: -2.35 | B38: -34.44367
A39: -2.3 | B39: -33.24644
A40: -2.25 | B40: -32.07375
A41: -2.2 | B41: -30.92536
A42: -2.15 | B42: -29.80103
A43: -2.1 | B43: -28.70052
A44: -2.05 | B44: -27.62359
A45: -2 | B45: -26.57
A46: -1.95 | B46: -25.53951
A47: -1.9 | B47: -24.53188
A48: -1.85 | B48: -23.54687
A49: -1.8 | B49: -22.58424
A50: -1.75 | B50: -21.64375
A51: -1.7 | B51: -20.72516
A52: -1.65 | B52: -19.82823
A53: -1.6 | B53: -18.95272
A54: -1.55 | B54: -18.09839
A55: -1.5 | B55: -17.265
A56: -1.45 | B56: -16.45231
A57: -1.4 | B57: -15.66008
A58: =A57+dX -> -1.35 | B58: -14.88807
A59: -1.3 | B59: -14.13604
A60: -1.25 | B60: -13.40375
A61: -1.2 | B61: -12.69096
A62: -1.15 | B62: -11.99743
A63: -1.1 | B63: -11.32292
A64: -1.05 | B64: -10.66719
A65: -1 | B65: -10.03
A66: -0.95 | B66: -9.41111
A67: -0.9 | B67: -8.81028
A68: -0.85 | B68: -8.22727
A69: -0.8 | B69: -7.66184
A70: -0.75 | B70: -7.11375
A71: -0.7 | B71: -6.58276
A72: -0.65 | B72: -6.06863
A73: -0.6 | B73: -5.57112
A74: -0.55 | B74: -5.08999
A75: -0.5 | B75: -4.625
A76: -0.45 | B76: -4.17591
A77: -0.4 | B77: -3.74248
A78: -0.35 | B78: -3.32447
A79: -0.3 | B79: -2.92164
A80: -0.25 | B80: -2.53375
A81: -0.2 | B81: -2.16056
A82: -0.15 | B82: -1.80183
A83: -0.1 | B83: -1.45732
A84: -0.05 | B84: -1.12679
A85: -2.289834988e-15 | B85: -0.81
A86: 0.05 | B86: -0.50671
A87: 0.1 | B87: -0.21668
A88: 0.15 | B88: 0.06033
A89: 0.2 | B89: 0.32456
A90: =A89+dX -> 0.25 | B90: 0.57625
A91: 0.3 | B91: 0.81564
A92: 0.35 | B92: 1.04297
A93: 0.4 | B93: 1.25848
A94: 0.45 | B94: 1.46241
A95: 0.5 | B95: 1.655
A96: 0.55 | B96: 1.83649
A97: 0.6 | B97: 2.00712
A98: 0.65 | B98: 2.16713
A99: 0.7 | B99: 2.31676
A100: 0.75 | B100: 2.45625
A101: 0.8 | B101: 2.58584
A102: 0.85 | B102: 2.70577
A103: 0.9 | B103: 2.81628
A104: 0.95 | B104: 2.91761
A105: 1 | B105: 3.01
A106: 1.05 | B106: 3.09369
A107: 1.1 | B107: 3.16892
A108: 1.15 | B108: 3.23593
A109: 1.2 | B109: 3.29496
A110: 1.25 | B110: 3.34625
A111: 1.3 | B111: 3.39004
A112: 1.35 | B112: 3.42657
A113: 1.4 | B113: 3.45608
A114: 1.45 | B114: 3.47881
A115: 1.5 | B115: 3.495
A116: 1.55 | B116: 3.50489
A117: 1.6 | B117: 3.50872
A118: 1.65 | B118: 3.50673
A119: 1.7 | B119: 3.49916
A120: 1.75 | B120: 3.48625
A121: 1.8 | B121: 3.46824
A122: =A121+dX -> 1.85 | B122: 3.44537
A123: 1.9 | B123: 3.41788
A124: 1.95 | B124: 3.38601
A125: 2 | B125: 3.35
A126: 2.05 | B126: 3.31009
A127: 2.1 | B127: 3.26652
A128: 2.15 | B128: 3.21953
A129: 2.2 | B129: 3.16936
A130: 2.25 | B130: 3.11625
A131: 2.3 | B131: 3.06044
A132: 2.35 | B132: 3.00217
A133: 2.4 | B133: 2.94168
A134: 2.45 | B134: 2.87921
A135: 2.5 | B135: 2.815
A136: 2.55 | B136: 2.74929
A137: 2.6 | B137: 2.68232
A138: 2.65 | B138: 2.61433
A139: 2.7 | B139: 2.54556
A140: 2.75 | B140: 2.47625
A141: 2.8 | B141: 2.40664
A142: 2.85 | B142: 2.33697
A143: 2.9 | B143: 2.26748
A144: 2.95 | B144: 2.19841
A145: 3 | B145: 2.13
A146: 3.05 | B146: 2.06249
A147: 3.1 | B147: 1.99612
A148: 3.15 | B148: 1.93113
A149: 3.2 | B149: 1.86776
A150: 3.25 | B150: 1.80625
A151: 3.3 | B151: 1.74684
A152: 3.35 | B152: 1.68977
A153: 3.4 | B153: 1.63528
A154: =A153+dX -> 3.45 | B154: 1.58361
A155: 3.5 | B155: 1.535
A156: 3.55 | B156: 1.48969
A157: 3.6 | B157: 1.44792
A158: 3.65 | B158: 1.40993
A159: 3.7 | B159: 1.37596
A160: 3.75 | B160: 1.34625
A161: 3.8 | B161: 1.32104
A162: 3.85 | B162: 1.30057
A163: 3.9 | B163: 1.28508
A164: 3.95 | B164: 1.27481
A165: 4 | B165: 1.27
A166: 4.05 | B166: 1.27089
A167: 4.1 | B167: 1.27772
A168: 4.15 | B168: 1.29073
A169: 4.2 | B169: 1.31016
A170: 4.25 | B170: 1.33625
A171: 4.3 | B171: 1.36924
A172: 4.35 | B172: 1.40937
A173: 4.4 | B173: 1.45688
A174: 4.45 | B174: 1.51201
A175: 4.5 | B175: 1.575
A176: 4.55 | B176: 1.64609
A177: 4.6 | B177: 1.72552
A178: 4.65 | B178: 1.81353
A179: 4.7 | B179: 1.91036
A180: 4.75 | B180: 2.01625
A181: 4.8 | B181: 2.13144
A182: 4.85 | B182: 2.25617
A183: 4.9 | B183: 2.39068
A184: 4.95 | B184: 2.53521
A185: 5 | B185: 2.69
A186: =A185+dX -> 5.05 | B186: 2.85529
A187: 5.1 | B187: 3.03132
A188: 5.15 | B188: 3.21833
A189: 5.2 | B189: 3.41656
A190: 5.25 | B190: 3.62625
A191: 5.3 | B191: 3.84764
A192: 5.35 | B192: 4.08097
A193: 5.4 | B193: 4.32648
A194: 5.45 | B194: 4.58441
A195: 5.5 | B195: 4.855
A196: 5.55 | B196: 5.13849
A197: 5.6 | B197: 5.43512
A198: 5.65 | B198: 5.74513
A199: 5.7 | B199: 6.06876
A200: 5.75 | B200: 6.40625
A201: 5.8 | B201: 6.75784
A202: 5.85 | B202: 7.12377
A203: 5.9 | B203: 7.50428
A204: 5.95 | B204: 7.89961
A205: 6 | B205: 8.31
A206: 6.05 | B206: 8.73569
A207: 6.1 | B207: 9.17692
A208: 6.15 | B208: 9.63393
A209: 6.2 | B209: 10.10696
A210: 6.25 | B210: 10.59625
... 15 more rows

Sheet Cannon
A1: Constants
A2: dT | B2: 0.5 | C2: secs
A3: Gravity | B3: 32.17 | C3: ft/sec/sec | G3: Label | H3: ="Trajectory:"&ss&"@"&theta&"°" -> Trajectory:1200@38.4°
A4: Cd | B4: 0.0001 | C4: dimensionless
A6: Inputs | G6: Amount of Miss | H6: =ABS(LOOKUP(B13,B17:B801,C17:C801)-B14) -> 1272.424667
A7: Angle | B7: 384 | E7: [0,90] | G7: (when X = TargetX)
A8: (degrees) | B8: =B7/10 -> 38.4 | E8: Step= .1
A10: Start Speed | B10: 1200 | E10: [0, 2000]
A11: (ft/sec) | B11: =B10 -> 1200 | E11: Step = 1
A13: Target X | B13: 10000
A14: Target Y | B14: 2000 | S14: Angle | T14: Miss
T15: =H6 -> 1272.424667
A16: Time | B16: X(Time) | C16: Y(Time) | D16: Vx(Time) | E16: Vy(Time) | F16: S(time) | G16: Ax(Time) | H16: Ay(Time) | S16: 100 | T16: 2001
A17: =0 -> 0 | B17: =0 -> 0 | C17: =0 -> 0 | D17: =ss*COS(RADIANS(theta)) -> 940.4321488 | E17: =ss*SIN(RADIANS(theta)) -> 745.3773363 | F17: =SQRT(D17^2+E17^2) -> 1200 | G17: =-Cd*D17*F17 -> -112.8518579 | H17: =-Cd*E17*F17-Gravity -> -121.6152804 | S17: =S16+10 -> 110 | T17: 2001
A18: =$B$2+A17 -> 0.5 | B18: =IF( C18<0,B17, B17+D17*dT) -> 470.2160744 | C18: =IF(C17<0,-1,C17+E17*dT) -> 372.6886682 | D18: =D17+G17*dT -> 884.0062199 | E18: =E17+H17*dT -> 684.5696962 | F18: =SQRT(D18^2+E18^2) -> 1118.079901 | G18: -98.8389587 | H18: -108.7103618 | S18: =S17+10 -> 120 | T18: 2001
A19: =$B$2+A18 -> 1 | B19: 912.2191843 | C19: 714.9735162 | D19: 834.5867405 | E19: 630.2145152 | F19: =SQRT(D19^2+E19^2) -> 1045.803692 | G19: -87.28138947 | H19: -98.07806669 | S19: 130 | T19: 2001
A20: 1.5 | B20: 1329.512555 | C20: 1030.080774 | D20: 790.9460458 | E20: 581.1754819 | F20: 981.5093418 | G20: -77.63209328 | H20: -89.21291647 | S20: 140 | T20: 2001
A21: 2 | B21: 1724.985577 | C21: 1320.668515 | D21: 752.1299991 | E21: 536.5690237 | F21: 923.9079244 | G21: -69.48988664 | H21: -81.74403729 | S21: 150 | T21: 1841.899988
A22: 2.5 | B22: 2101.050577 | C22: 1588.953027 | D22: 717.3850558 | E22: 495.697005 | F22: 871.9844259 | G22: -62.55485961 | H22: -75.39400684 | S22: 160 | T22: 1772.1771
A23: 3 | B23: 2459.743105 | C23: 1836.801529 | D23: 686.107626 | E23: 458.0000016 | F23: 824.9288914 | G23: -56.59900033 | H23: -69.95174336 | S23: 170 | T23: 1597.853562
A24: 3.5 | B24: 2802.796918 | C24: 2065.80153 | D24: 657.8081258 | E24: 423.0241299 | F24: 782.0875558 | G24: -51.44635493 | H24: -65.25419078 | S24: 180 | T24: 1424.124289
A25: 4 | B25: 3131.700981 | C25: 2277.313595 | D25: 632.0849484 | E25: 390.3970345 | F25: 742.9274706 | G25: -46.95932719 | H25: -61.17366814 | S25: 190 | T25: 1251.043757
A26: 4.5 | B26: 3447.743455 | C26: 2472.512112 | D26: 608.6052848 | E26: 359.8102005 | F26: 707.0104476 | G26: -43.02902948 | H26: -57.60895709 | S26: 200 | T26: 1078.66655
A27: 5 | B27: 3752.046097 | C27: 2652.417212 | D27: 587.09077 | E27: 331.0057219 | F27: 673.9735605 | G27: -39.56836566 | H27: -54.47891049 | S27: 210 | T27: 997.1064149
A28: 5.5 | B28: 4045.591482 | C28: 2817.920073 | D28: 567.3065872 | E28: 303.7662667 | F28: 643.5143422 | G28: -36.50699253 | H28: -51.71779493 | S28: 220 | T28: 822.8431517
A29: 6 | B29: 4329.244776 | C29: 2969.803207 | D29: 549.0530909 | E29: 277.9073692 | F29: 615.3793972 | G29: -33.78759602 | H29: -49.27184693 | S29: 230 | T29: 649.4469804
A30: 6.5 | B30: 4603.771322 | C30: 3108.756891 | D30: 532.1592929 | E30: 253.2714457 | F30: 589.3555279 | G30: -31.3631021 | H30: -47.09669266 | S30: 240 | T30: 562.9984847
A31: 7 | B31: 4869.850968 | C31: 3235.392614 | D31: 516.4777419 | E31: 229.7230994 | F31: 565.2627356 | G31: -29.19456213 | H31: -45.15539076 | S31: 250 | T31: 388.1390292
A32: 7.5 | B32: 5128.089839 | C32: 3350.254164 | D32: 501.8804608 | E32: 207.145404 | F32: 542.9486305 | G32: -27.24953089 | H32: -43.41693134 | S32: 260 | T32: 214.3162739
A33: 8 | B33: 5379.030069 | C33: 3453.826866 | D33: 488.2556954 | E33: 185.4369384 | F33: 522.2839096 | G33: -25.50080934 | H33: -41.85507291 | S33: 270 | T33: 123.9967525
A34: 8.5 | B34: 5623.157917 | C34: 3546.545335 | D34: 475.5052907 | E34: 164.5094019 | F34: 503.1586477 | G34: -23.92545991 | H34: -40.44743282 | L34: 3 | N34: =COUNTIF(L37:L41,IF(L34>=2,TRUE,FALSE)) -> 0 | S34: 280 | T34: 50.85360893
A35: 9 | B35: 5860.910562 | C35: 3628.800036 | D35: 463.5425608 | E35: 144.2856855 | F35: 485.4792114 | G35: -22.50402768 | H35: -39.17477008 | S35: 290 | T35: 142.1062914
A36: 9.5 | B36: 6092.681843 | C36: 3700.942879 | D36: 452.2905469 | E36: 124.6983004 | F36: 469.1656477 | G36: -21.21991874 | H36: -38.02041589 | S36: 300 | T36: 317.6570416
A37: 10 | B37: 6318.827116 | C37: 3763.292029 | D37: 441.6805875 | E37: 105.6880925 | F37: 454.1494405 | G37: -20.05889917 | H37: -36.96981881 | L37: 1 | S37: 310 | T37: 409.2948088
A38: 10.5 | B38: 6539.66741 | C38: 3816.136075 | D38: 431.651138 | E38: 87.20318309 | F38: 440.3715477 | G38: -19.00868797 | H38: -36.01018007 | L38: 2 | S38: 320 | T38: 585.2133456
A39: 11 | B39: 6755.492979 | C39: 3859.737667 | D39: 422.146794 | E39: 69.19809306 | F39: 427.7806585 | G39: -18.05862335 | H39: -35.13016058 | L39: 3 | S39: 330 | T39: 676.6903244
A40: 11.5 | B40: 6966.566376 | C40: 3894.336713 | D40: 413.1174823 | E40: 51.63301277 | F40: 416.3316253 | G40: -17.19938728 | H40: -34.31964561 | L40: 4 | S40: 340 | T40: 852.6384161
A41: 12 | B41: 7173.125117 | C41: 3920.15322 | D41: 404.5177887 | E41: 34.47318996 | F41: 405.9840418 | G41: -16.42277668 | H41: -33.5695565 | L41: 5 | S41: 350 | T41: 943.4097091
A42: 12.5 | B42: 7375.384012 | C42: 3937.389815 | D42: 396.3064003 | E42: 17.68841171 | F42: 396.7009489 | G42: -15.72151251 | H42: -32.87170097 | S42: 360 | T42: 1031.807623
A43: 13 | B43: 7573.537212 | C43: 3946.23402 | D43: 388.4456441 | E43: 1.252561228 | F43: 388.4476635 | G43: -15.08908028 | H43: -32.21865545 | S43: 370 | T43: 1208.563672
A44: 13.5 | B44: 7767.760034 | C44: 3946.860301 | D44: 380.9011039 | E44: -14.8567665 | F44: 381.1907324 | G44: -14.51959708 | H44: -31.60367383 | S44: 380 | T44: 1295.384373
A45: 14 | B45: 7958.210586 | C45: 3939.431918 | D45: 373.6413054 | E45: -30.65860341 | F45: 374.8970193 | G45: -14.00770117 | H45: -31.0206181 | S45: 390 | T45: 1379.329884
A46: 14.5 | B46: 8145.031238 | C46: 3924.102616 | D46: 366.6374548 | E46: -46.16891246 | F46: 369.5329373 | G46: -13.54846156 | H46: -30.46390662 | S46: 400 | T46: 1460.226757
A47: 15 | B47: 8328.349966 | C47: 3901.01816 | D47: 359.863224 | E47: -61.40086577 | F47: 365.0638387 | G47: -13.137305 | H47: -29.92847642 | S47: 410 | T47: 1537.903399
A48: 15.5 | B48: 8508.281578 | C48: 3870.317727 | D48: 353.2945715 | E48: -76.36510398 | F48: 361.4535702 | G48: -12.76995842 | H48: -29.40975605 | S48: 420 | T48: 1612.189952
A49: 16 | B49: 8684.928864 | C49: 3832.135175 | D49: 346.9095923 | E49: -91.06998201 | F49: 358.6641979 | G49: -12.44240507 | H49: -28.90364579 | S49: 430 | T49: 1682.918204
A50: 16.5 | B50: 8858.38366 | C50: 3786.600184 | D50: 340.6883898 | E50: -105.5218049 | F50: 356.6558989 | G50: -12.15085239 | H50: -28.40650258 | S50: 440 | T50: 1749.921502
A51: 17 | B51: 9028.727855 | C51: 3733.839282 | D51: 334.6129636 | E51: -119.7250562 | F51: 355.3870066 | G51: -11.89170995 | H51: -27.91512707 | S51: 450 | T51: 1813.03468
A52: 17.5 | B52: 9196.034336 | C52: 3673.976753 | D52: 328.6671086 | E52: -133.6826197 | F52: 354.8141924 | G52: -11.66157547 | H52: -27.42675092 | S52: 460 | T52: 1872.094001
A53: 18 | B53: 9360.367891 | C53: 3607.135444 | D53: 322.8363209 | E53: -147.3959952 | F53: 354.8927577 | G53: -11.45722722 | H53: -26.93902288 | S53: 470 | T53: 1798.239925
A54: 18.5 | B54: 9521.786051 | C54: 3533.437446 | D54: 317.1077073 | E54: -160.8655066 | F54: 355.5770089 | G54: -11.275621 | H54: -26.44999243 | S54: 480 | T54: 1844.87851
A55: 19 | B55: 9680.339905 | C55: 3453.004693 | D55: 311.4698968 | E55: -174.0905028 | F55: 356.8206829 | G55: -11.11389013 | H55: -25.95809079 | S55: 490 | T55: 1745.014555
A56: 19.5 | B56: 9836.074853 | C56: 3365.959441 | D56: 305.9129517 | E56: -187.0695482 | F56: 358.5773974 | G56: -10.969347 | H56: -25.46210883 | S56: 500 | T56: 1778.689059
A57: 20 | B57: 9989.031329 | C57: 3272.424667 | D57: 300.4282782 | E57: -199.8006027 | F57: 360.8010964 | G57: -10.83948522 | H57: -24.96117235 | S57: 510 | T57: 1652.786921
A58: 20.5 | B58: 10139.24547 | C58: 3172.524366 | D58: 295.0085356 | E58: -212.2811888 | F58: 363.4464736 | G58: -10.7219812 | H58: -24.45471505 | S58: 520 | T58: 1509.576171
A59: 21 | B59: 10286.74974 | C59: 3066.383771 | D59: 289.647545 | E59: -224.5085464 | F59: 366.4693544 | G59: -10.61469488 | H59: -23.9424498 | S59: 530 | T59: 1349.38992
A60: 21.5 | B60: 10431.57351 | C60: 2954.129498 | D60: 284.3401976 | E60: -236.4797713 | F60: 369.8270273 | G60: -10.515669 | H60: -23.42433892 | S60: 540 | T60: 1172.590273
A61: 22 | B61: 10573.74361 | C61: 2835.889613 | D61: 279.0823631 | E61: -248.1919407 | F61: 373.4785199 | G61: -10.42312679 | H61: -22.90056413 | S61: 550 | T61: 787.989245
A62: 22.5 | B62: 10713.28479 | C62: 2711.793642 | D62: 273.8707997 | E62: -259.6422228 | F62: 377.3848152 | G62: -10.33546811 | H62: -22.37149677 | S62: 560 | T62: 369.7799004
A63: 23 | B63: 10850.22019 | C63: 2581.972531 | D63: 268.7030656 | E63: -270.8279712 | F63: 381.5090136 | G63: -10.25126415 | H63: -21.83766879 | S63: 570 | T63: 79.63896627
A64: 23.5 | B64: 10984.57172 | C64: 2446.558545 | D64: 263.5774335 | E64: -281.7468056 | F64: 385.8164407 | G64: -10.16925072 | H64: -21.29974503 | S64: 580 | T64: 557.9173833
A65: 24 | B65: 11116.36044 | C65: 2305.685143 | D65: 258.4928082 | E65: -292.3966781 | F65: 390.2747099 | G65: -10.08832057 | H65: -20.75849713 | S65: 590 | T65: 1528.519073
A66: 24.5 | B66: 11245.60684 | C66: 2159.486803 | D66: 253.4486479 | E66: -302.7759266 | F66: 394.8537436 | G66: -10.00751474 | H66: -20.21477919 | S66: 600 | T66: 2001
A67: 25 | B67: 11372.33117 | C67: 2008.09884 | D67: 248.4448905 | E67: -312.8833162 | F67: 399.5257604 | G67: -9.926013379 | H67: -19.66950552 | S67: 610 | T67: 2001
A68: 25.5 | B68: 11496.55361 | C68: 1851.657182 | D68: 243.4818838 | E68: -322.718069 | F68: 404.2652345 | G68: -9.843126085 | H68: -19.12363042 | S68: 620 | T68: 2001
A69: 26 | B69: 11618.29455 | C69: 1690.298148 | D69: 238.5603208 | E69: -332.2798842 | F69: 409.0488334 | G69: -9.75828209 | H69: -18.5781301 | S69: 630 | T69: 2001
A70: 26.5 | B70: 11737.57471 | C70: 1524.158205 | D70: 233.6811797 | E70: -341.5689492 | F70: 413.8553381 | G70: -9.671020364 | H70: -18.0339867 | S70: 640 | T70: 2001
A71: 27 | B71: 11854.4153 | C71: 1353.373731 | D71: 228.8456695 | E71: -350.5859426 | F71: 418.665551 | G71: -9.580979834 | H71: -17.49217432 | S71: 650 | T71: 2001
A72: 27.5 | B72: 11968.83814 | C72: 1178.08076 | D72: 224.0551796 | E72: -359.3320298 | F72: 423.4621956 | G72: -9.487889831 | H72: -16.95364697 | S72: 660 | T72: 2001
A73: 28 | B73: 12080.86573 | C73: 998.4147446 | D73: 219.3112347 | E73: -367.8088532 | F73: 428.22981 | G73: -9.391560838 | H73: -16.41932846 | S73: =S72+10 -> 670 | T73: 2001
A74: 28.5 | B74: 12190.52135 | C74: 814.510318 | D74: 214.6154543 | E74: -376.0185175 | F74: 432.9546382 | G74: -9.291875636 | H74: -15.89010388 | S74: 680 | T74: 2001
A75: 29 | B75: 12297.82907 | C75: 626.5010593 | D75: 209.9695165 | E75: -383.9635694 | F75: 437.62452 | G75: -9.188780886 | H75: -15.36681272 | S75: 690 | T75: 2001
A76: 29.5 | B76: 12402.81383 | C76: 434.5192746 | D76: 205.375126 | E76: -391.6469758 | F76: 442.2287825 | G76: -9.082279193 | H76: -14.85024347 | S76: 700 | T76: 2001
A77: 30 | B77: 12505.50139 | C77: 238.6957867 | D77: 200.8339864 | E77: -399.0720975 | F77: 446.7581327 | G77: -8.972421676 | H77: -14.34112949 | S77: 710 | T77: 2001
A78: 30.5 | B78: 12605.91839 | C78: 39.15973793 | D78: 196.3477756 | E78: -406.2426623 | F78: 451.2045541 | G78: -8.859301053 | H78: -13.84014607 | S78: 720 | T78: 2001
A79: 31 | B79: 12605.91839 | C79: -163.9615932 | D79: 191.9181251 | E79: -413.1627353 | F79: 455.5612062 | G79: -8.743045254 | H79: -13.3479086 | S79: 730 | T79: 2001
A80: 31.5 | B80: 12605.91839 | C80: -1 | D80: 187.5466024 | E80: -419.8366896 | F80: 459.8223288 | G80: -8.623811549 | H80: -12.86497157 | S80: 740 | T80: 2001
A81: 32 | B81: 12605.91839 | C81: -1 | D81: 183.2346967 | E81: -426.2691754 | F81: 463.9831505 | G81: =-Cd*D81*F81 -> -8.501781184 | H81: =-Cd*E81*F81-Gravity -> -12.3918285 | S81: 750 | T81: 2001
A82: 32.5 | B82: =IF( C82<0,B81, B81+D81*dT) -> 12605.91839 | C82: =IF(C81<0,-1,C81+E81*dT) -> -1 | D82: =D81+G81*dT -> 178.9838061 | E82: =E81+H81*dT -> -432.4650896 | F82: 468.0398024 | G82: -8.377154522 | H82: -11.92891249 | S82: =S81+10 -> 760 | T82: 2001
A83: =$B$2+A82 -> 33 | B83: 12605.91839 | C83: -1 | D83: 174.7952288 | E83: -438.4295459 | F83: =SQRT(D83^2+E83^2) -> 471.9892358 | G83: -8.250146647 | H83: -11.47659737 | S83: 770 | T83: 2001
A84: 33.5 | B84: 12605.91839 | C84: -1 | D84: 170.6701555 | E84: -444.1678446 | F84: 475.8291459 | G84: -8.120983433 | H84: -11.03519939 | S84: 780 | T84: 2001
A85: 34 | B85: 12605.91839 | C85: -1 | D85: 166.6096638 | E85: -449.6854443 | F85: 479.5578994 | G85: -7.989898037 | H85: -10.6049793 | S85: 790 | T85: 2001
A86: 34.5 | B86: 12605.91839 | C86: -1 | D86: 162.6147148 | E86: -454.9879339 | F86: 483.1744669 | G86: -7.857127811 | H86: -10.18614476 | S86: 800 | T86: 2001
A87: 35 | B87: 12605.91839 | C87: -1 | D87: 158.6861509 | E87: -460.0810063 | F87: 486.6783607 | G87: -7.722911577 | H87: -9.778853005
A88: 35.5 | B88: 12605.91839 | C88: -1 | D88: 154.8246951 | E88: -464.9704328 | F88: 490.0695763 | G88: -7.58748727 | H88: -9.383213703
A89: 36 | B89: 12605.91839 | C89: -1 | D89: 151.0309514 | E89: -469.6620396 | F89: 493.3485378 | G89: -7.451089905 | H89: -8.999291947
A90: 36.5 | B90: 12605.91839 | C90: -1 | D90: 147.3054065 | E90: -474.1616856 | F90: 496.516049 | G90: -7.313949842 | H90: -8.627111329
A91: 37 | B91: 12605.91839 | C91: -1 | D91: 143.6484316 | E91: -478.4752413 | F91: 499.5732463 | G91: -7.176291328 | H91: -8.266657045
A92: 37.5 | B92: 12605.91839 | C92: -1 | D92: 140.0602859 | E92: -482.6085698 | F92: 502.5215571 | G92: -7.038331295 | H92: -7.917879004
A93: 38 | B93: 12605.91839 | C93: -1 | D93: 136.5411202 | E93: -486.5675093 | F93: 505.3626605 | G93: -6.900278379 | H93: -7.580694899
A94: 38.5 | B94: 12605.91839 | C94: -1 | D94: 133.0909811 | E94: -490.3578568 | F94: 508.098452 | G94: -6.762332145 | H94: -7.254993206
A95: 39 | B95: 12605.91839 | C95: -1 | D95: 129.709815 | E95: -493.9853534 | F95: 510.7310108 | G95: -6.624682492 | H95: -6.940636114
A96: 39.5 | B96: 12605.91839 | C96: -1 | D96: 126.3974737 | E96: -497.4556714 | F96: 513.2625706 | G96: -6.487509229 | H96: -6.637462333
A97: 40 | B97: 12605.91839 | C97: -1 | D97: 123.1537191 | E97: -500.7744026 | F97: 515.6954923 | G97: -6.350981782 | H97: -6.345289791
A98: 40.5 | B98: 12605.91839 | C98: -1 | D98: 119.9782282 | E98: -503.9470475 | F98: 518.0322402 | G98: -6.215259035 | H98: -6.063918204
A99: 41 | B99: 12605.91839 | C99: -1 | D99: 116.8705987 | E99: -506.9790066 | F99: 520.2753597 | G99: -6.080489279 | H99: -5.793131497
A100: 41.5 | B100: 12605.91839 | C100: -1 | D100: 113.8303541 | E100: -509.8755723 | F100: 522.4274579 | G100: -5.946810251 | H100: -5.532700091
A101: 42 | B101: 12605.91839 | C101: -1 | D101: 110.8569489 | E101: -512.6419224 | F101: 524.4911855 | G101: -5.814349258 | H101: -5.282383038
A102: 42.5 | B102: 12605.91839 | C102: -1 | D102: 107.9497743 | E102: -515.2831139 | F102: 526.4692215 | G102: -5.683223365 | H102: -5.041930015
A103: 43 | B103: 12605.91839 | C103: -1 | D103: 105.1081626 | E103: -517.8040789 | F103: 528.3642588 | G103: -5.553539645 | H103: -4.811083165
A104: 43.5 | B104: 12605.91839 | C104: -1 | D104: 102.3313928 | E104: -520.2096205 | F104: 530.1789917 | G104: -5.425395466 | H104: -4.589578796
A105: 44 | B105: 12605.91839 | C105: -1 | D105: 99.61869508 | E105: -522.5044099 | F105: 531.916105 | G105: -5.298878827 | H105: -4.377148946
A106: 44.5 | B106: 12605.91839 | C106: -1 | D106: 96.96925567 | E106: -524.6929844 | F106: 533.5782645 | G106: -5.174068715 | H106: -4.1735228
A107: 45 | B107: 12605.91839 | C107: -1 | D107: 94.38222131 | E107: -526.7797458 | F107: 535.1681084 | G107: -5.051035484 | H107: -3.978427993
A108: 45.5 | B108: 12605.91839 | C108: -1 | D108: 91.85670357 | E108: -528.7689597 | F108: 536.6882398 | G108: -4.929841256 | H108: -3.791591771
A109: 46 | B109: 12605.91839 | C109: -1 | D109: 89.39178294 | E109: -530.6647556 | F109: 538.141221 | G109: -4.810540322 | H109: -3.612742047
A110: 46.5 | B110: 12605.91839 | C110: -1 | D110: 86.98651278 | E110: -532.4711267 | F110: 539.5295674 | G110: -4.693179561 | H110: -3.441608337
A111: 47 | B111: 12605.91839 | C111: -1 | D111: 84.639923 | E111: -534.1919308 | F111: 540.8557437 | G111: -4.57779885 | H111: -3.277922596
A112: 47.5 | B112: 12605.91839 | C112: -1 | D112: 82.35102357 | E112: -535.8308921 | F112: 542.1221597 | G112: -4.464431475 | H112: -3.121419953
A113: 48 | B113: 12605.91839 | C113: -1 | D113: 80.11880784 | E113: -537.3916021 | F113: 543.3311673 | G113: -4.353104539 | H113: -2.971839353
A114: 48.5 | B114: 12605.91839 | C114: -1 | D114: 77.94225557 | E114: -538.8775218 | F114: 544.4850583 | G114: -4.243839356 | H114: -2.828924116
A115: 49 | B115: 12605.91839 | C115: -1 | D115: 75.82033589 | E115: -540.2919838 | F115: 545.5860621 | G115: -4.136651848 | H115: -2.692422417
A116: 49.5 | B116: 12605.91839 | C116: -1 | D116: 73.75200997 | E116: -541.638195 | F116: 546.6363447 | G116: -4.031552914 | H116: -2.562087693
A117: 50 | B117: 12605.91839 | C117: -1 | D117: 71.73623351 | E117: -542.9192389 | F117: 547.6380074 | G117: -3.928548798 | H117: -2.437678983
A118: 50.5 | B118: 12605.91839 | C118: -1 | D118: 69.77195911 | E118: -544.1380784 | F118: 548.5930866 | G118: -3.82764144 | H118: -2.318961207
A119: 51 | B119: 12605.91839 | C119: -1 | D119: 67.85813839 | E119: -545.297559 | F119: 549.503553 | G119: -3.728828815 | H119: -2.205705389
A120: 51.5 | B120: 12605.91839 | C120: -1 | D120: 65.99372398 | E120: -546.4004117 | F120: 550.3713124 | G120: -3.632105248 | H120: -2.097688834
A121: 52 | B121: 12605.91839 | C121: -1 | D121: 64.17767136 | E121: -547.4492561 | F121: 551.1982053 | G121: -3.537461727 | H121: -1.994695256
A122: 52.5 | B122: 12605.91839 | C122: -1 | D122: 62.40894049 | E122: -548.4466037 | F122: 551.986008 | G122: -3.444886192 | H122: -1.896514863
A123: 53 | B123: 12605.91839 | C123: -1 | D123: 60.6864974 | E123: -549.3948612 | F123: 552.7364331 | G123: -3.354363811 | H123: -1.802944411
A124: 53.5 | B124: 12605.91839 | C124: -1 | D124: 59.00931549 | E124: -550.2963334 | F124: 553.4511305 | G124: -3.265877237 | H124: -1.713787221
A125: 54 | B125: 12605.91839 | C125: -1 | D125: 57.37637687 | E125: -551.153227 | F125: 554.1316885 | G125: -3.17940686 | H125: -1.628853171
A126: 54.5 | B126: 12605.91839 | C126: -1 | D126: 55.78667344 | E126: -551.9676536 | F126: 554.7796351 | G126: -3.094931034 | H126: -1.547958658
A127: 55 | B127: 12605.91839 | C127: -1 | D127: 54.23920793 | E127: -552.7416329 | F127: 555.396439 | G127: -3.012426293 | H127: -1.470926544
A128: 55.5 | B128: 12605.91839 | C128: -1 | D128: 52.73299478 | E128: -553.4770962 | F128: 555.9835112 | G128: -2.931867559 | H128: -1.397586072
A129: 56 | B129: 12605.91839 | C129: -1 | D129: 51.267061 | E129: -554.1758892 | F129: 556.5422066 | G129: -2.853228325 | H129: -1.32777278
A130: 56.5 | B130: 12605.91839 | C130: -1 | D130: 49.84044684 | E130: -554.8397756 | F130: 557.0738252 | G130: -2.776480837 | H130: -1.261328385
A131: 57 | B131: 12605.91839 | C131: -1 | D131: 48.45220642 | E131: -555.4704398 | F131: 557.5796138 | G131: -2.701596255 | H131: -1.198100669
A132: 57.5 | B132: 12605.91839 | C132: -1 | D132: 47.10140829 | E132: -556.0694901 | F132: 558.0607677 | G132: -2.628544807 | H132: -1.137943343
A133: 58 | B133: 12605.91839 | C133: -1 | D133: 45.78713589 | E133: -556.6384618 | F133: 558.5184321 | G133: -2.557295935 | H133: -1.08071591
A134: 58.5 | B134: 12605.91839 | C134: -1 | D134: 44.50848792 | E134: -557.1788197 | F134: 558.9537035 | G134: -2.487818416 | H134: -1.02628352
A135: 59 | B135: 12605.91839 | C135: -1 | D135: 43.26457871 | E135: -557.6919615 | F135: 559.367632 | G135: -2.420080494 | H135: -0.9745168133
A136: 59.5 | B136: 12605.91839 | C136: -1 | D136: 42.05453847 | E136: -558.1792199 | F136: 559.7612221 | G136: -2.354049985 | H136: -0.9252917732
A137: 60 | B137: 12605.91839 | C137: -1 | D137: 40.87751347 | E137: -558.6418658 | F137: 560.1354348 | G137: -2.289694378 | H137: -0.8784895608
A138: 60.5 | B138: 12605.91839 | C138: -1 | D138: 39.73266629 | E138: -559.0811106 | F138: 560.491189 | G138: -2.226980937 | H138: -0.833996358
A139: 61 | B139: 12605.91839 | C139: -1 | D139: 38.61917582 | E139: -559.4981087 | F139: 560.829363 | G139: -2.165876777 | H139: -0.7917032056
A140: 61.5 | B140: 12605.91839 | C140: -1 | D140: 37.53623743 | E140: -559.8939604 | F140: 561.1507961 | G140: -2.106348952 | H140: -0.751505842
A141: 62 | B141: 12605.91839 | C141: -1 | D141: 36.48306295 | E141: -560.2697133 | F141: 561.4562899 | G141: -2.048364517 | H141: -0.7133045431
A142: 62.5 | B142: 12605.91839 | C142: -1 | D142: 35.45888069 | E142: -560.6263655 | F142: 561.7466101 | G142: -1.991890603 | H142: -0.6770039621
A143: 63 | B143: 12605.91839 | C143: -1 | D143: 34.46293539 | E143: -560.9648675 | F143: 562.0224876 | G143: -1.936894468 | H143: -0.6425129725
A144: 63.5 | B144: 12605.91839 | C144: -1 | D144: 33.49448816 | E144: -561.286124 | F144: 562.2846199 | G144: -1.883343554 | H144: -0.6097445121
A145: 64 | B145: 12605.91839 | C145: -1 | D145: 32.55281638 | E145: -561.5909963 | F145: 562.5336727 | G145: =-Cd*D145*F145 -> -1.831205536 | H145: =-Cd*E145*F145-Gravity -> -0.5786154304
A146: 64.5 | B146: =IF( C146<0,B145, B145+D145*dT) -> 12605.91839 | C146: =IF(C145<0,-1,C145+E145*dT) -> -1 | D146: =D145+G145*dT -> 31.63721361 | E146: =E145+H145*dT -> -561.880304 | F146: 562.7702811 | G146: -1.78044836 | H146: -0.5490463384
A147: =$B$2+A146 -> 65 | B147: 12605.91839 | C147: -1 | D147: 30.74698943 | E147: -562.1548272 | F147: =SQRT(D147^2+E147^2) -> 562.9950506 | G147: -1.731040287 | H147: -0.5209614618
A148: 65.5 | B148: 12605.91839 | C148: -1 | D148: 29.88146929 | E148: -562.4153079 | F148: 563.2085588 | G148: -1.682949925 | H148: -0.494288498
A149: 66 | B149: 12605.91839 | C149: -1 | D149: 29.03999433 | E149: -562.6624521 | F149: 563.4113562 | G149: -1.636146259 | H149: -0.4689584755
A150: 66.5 | B150: 12605.91839 | C150: -1 | D150: 28.2219212 | E150: -562.8969314 | F150: 563.6039675 | G150: -1.590598676 | H150: -0.4449056187
A151: 67 | B151: 12605.91839 | C151: -1 | D151: 27.42662186 | E151: -563.1193842 | F151: 563.7868927 | G151: -1.546276992 | H151: -0.4220672153
A152: 67.5 | B152: 12605.91839 | C152: -1 | D152: 26.65348336 | E152: -563.3304178 | F152: 563.9606084 | G152: -1.503151469 | H152: -0.4003834879
A153: 68 | B153: 12605.91839 | C153: -1 | D153: 25.90190763 | E153: -563.5306095 | F153: 564.1255682 | G153: -1.461192836 | H153: -0.3797974701
A154: 68.5 | B154: 12605.91839 | C154: -1 | D154: 25.17131121 | E154: -563.7205083 | F154: 564.2822045 | G154: -1.420372298 | H154: -0.3602548859
A155: 69 | B155: 12605.91839 | C155: -1 | D155: 24.46112506 | E155: -563.9006357 | F155: 564.430929 | G155: -1.380661554 | H155: -0.3417040334
A156: 69.5 | B156: 12605.91839 | C156: -1 | D156: 23.77079429 | E156: -564.0714877 | F156: 564.5721335 | G156: -1.342032804 | H156: -0.3240956729
A157: 70 | B157: 12605.91839 | C157: -1 | D157: 23.09977788 | E157: -564.2335356 | F157: 564.7061912 | G157: -1.304458759 | H157: -0.3073829181
A158: 70.5 | B158: 12605.91839 | C158: -1 | D158: 22.4475485 | E158: -564.387227 | F158: 564.8334573 | G158: -1.267912643 | H158: -0.291521132
A159: 71 | B159: 12605.91839 | C159: -1 | D159: 21.81359218 | E159: -564.5329876 | F159: 564.9542697 | G159: -1.232368204 | H159: -0.2764678264
A160: 71.5 | B160: 12605.91839 | C160: -1 | D160: 21.19740808 | E160: -564.6712215 | F160: 565.0689502 | G160: -1.197799713 | H160: -0.262182565
A161: 72 | B161: 12605.91839 | C161: -1 | D161: 20.59850822 | E161: -564.8023128 | F161: 565.1778048 | G161: -1.164181966 | H161: -0.2486268703
A162: 72.5 | B162: 12605.91839 | C162: -1 | D162: 20.01641724 | E162: -564.9266262 | F162: 565.2811247 | G162: -1.131490285 | H162: -0.2357641346
A163: 73 | B163: 12605.91839 | C163: -1 | D163: 19.4506721 | E163: -565.0445083 | F163: 565.3791869 | G163: -1.099700518 | H163: -0.223559534
A164: 73.5 | B164: 12605.91839 | C164: -1 | D164: 18.90082184 | E164: -565.1562881 | F164: 565.4722548 | G164: -1.068789034 | H164: -0.211979946
A165: 74 | B165: 12605.91839 | C165: -1 | D165: 18.36642732 | E165: -565.262278 | F165: 565.5605791 | G165: -1.038732727 | H165: -0.2009938708
A166: 74.5 | B166: 12605.91839 | C166: -1 | D166: 17.84706096 | E166: -565.362775 | F166: 565.6443979 | G166: -1.009509005 | H166: -0.1905713553
A167: 75 | B167: 12605.91839 | C167: -1 | D167: 17.34230646 | E167: -565.4580606 | F167: 565.7239379 | G167: -0.9810957901 | H167: -0.1806839209
A168: 75.5 | B168: 12605.91839 | C168: -1 | D168: 16.85175856 | E168: -565.5484026 | F168: 565.7994145 | G168: -0.9534715127 | H168: -0.1713044939
A169: 76 | B169: 12605.91839 | C169: -1 | D169: 16.3750228 | E169: -565.6340548 | F169: 565.8710325 | G169: -0.9266151061 | H169: -0.1624073393
A170: 76.5 | B170: 12605.91839 | C170: -1 | D170: 15.91171525 | E170: -565.7152585 | F170: 565.9389865 | G170: -0.9005060002 | H170: -0.153967997
A171: 77 | B171: 12605.91839 | C171: -1 | D171: 15.46146225 | E171: -565.7922425 | F171: 566.0034616 | G171: -0.8751241155 | H171: -0.1459632211
A172: 77.5 | B172: 12605.91839 | C172: -1 | D172: 15.02390019 | E172: -565.8652241 | F172: 566.0646336 | G172: -0.8504498559 | H172: -0.1383709221
A173: 78 | B173: 12605.91839 | C173: -1 | D173: 14.59867527 | E173: -565.9344096 | F173: 566.1226698 | G173: -0.8264641017 | H173: -0.1311701109
A174: 78.5 | B174: 12605.91839 | C174: -1 | D174: 14.18544321 | E174: -565.9999946 | F174: 566.1777289 | G174: -0.8031482023 | H174: -0.1243408463
A175: 79 | B175: 12605.91839 | C175: -1 | D175: 13.78386911 | E175: -566.0621651 | F175: 566.2299619 | G175: -0.7804839683 | H175: -0.1178641838
A176: 79.5 | B176: 12605.91839 | C176: -1 | D176: 13.39362713 | E176: -566.1210972 | F176: 566.2795122 | G176: -0.7584536637 | H176: -0.111722128
A177: 80 | B177: 12605.91839 | C177: -1 | D177: 13.0144003 | E177: -566.1769582 | F177: 566.3265159 | G177: -0.7370399977 | H177: -0.1058975858
A178: 80.5 | B178: 12605.91839 | C178: -1 | D178: 12.6458803 | E178: -566.229907 | F178: 566.3711026 | G178: -0.7162261168 | H178: -0.1003743229
A179: 81 | B179: 12605.91839 | C179: -1 | D179: 12.28776724 | E179: -566.2800942 | F179: 566.4133952 | G179: -0.6959955962 | H179: -0.09513692156
A180: 81.5 | B180: 12605.91839 | C180: -1 | D180: 11.93976944 | E180: -566.3276626 | F180: 566.4535105 | G180: -0.6763324315 | H180: -0.09017074069
A181: 82 | B181: 12605.91839 | C181: -1 | D181: 11.60160323 | E181: -566.372748 | F181: 566.4915594 | G181: -0.6572210303 | H181: -0.08546187771
A182: 82.5 | B182: 12605.91839 | C182: -1 | D182: 11.27299271 | E182: -566.4154789 | F182: 566.5276473 | G182: -0.6386462039 | H182: -0.08099713218
A183: 83 | B183: 12605.91839 | C183: -1 | D183: 10.95366961 | E183: -566.4559775 | F183: 566.5618742 | G183: -0.6205931584 | H183: -0.07676397118
A184: 83.5 | B184: 12605.91839 | C184: -1 | D184: 10.64337303 | E184: -566.4943595 | F184: 566.5943352 | G184: -0.6030474867 | H184: -0.07275049631
A185: 84 | B185: 12605.91839 | C185: -1 | D185: 10.34184929 | E185: -566.5307347 | F185: 566.6251206 | G185: -0.5859951599 | H185: -0.06894541223
A186: 84.5 | B186: 12605.91839 | C186: -1 | D186: 10.04885171 | E186: -566.5652074 | F186: 566.6543159 | G186: -0.5694225189 | H186: -0.06533799677
A187: 85 | B187: 12605.91839 | C187: -1 | D187: 9.764140448 | E187: -566.5978764 | F187: 566.6820026 | G187: -0.5533162662 | H187: -0.06191807241
A188: 85.5 | B188: 12605.91839 | C188: -1 | D188: 9.487482314 | E188: -566.6288355 | F188: 566.7082579 | G188: -0.5376634574 | H188: -0.05867597917
A189: 86 | B189: 12605.91839 | C189: -1 | D189: 9.218650586 | E189: -566.6581735 | F189: 566.7331551 | G189: -0.5224514932 | H189: -0.05560254874
A190: 86.5 | B190: 12605.91839 | C190: -1 | D190: 8.957424839 | E190: -566.6859747 | F190: 566.7567639 | G190: -0.5076681115 | H190: -0.05268907997
A191: 87 | B191: 12605.91839 | C191: -1 | D191: 8.703590783 | E191: -566.7123193 | F191: 566.7791504 | G191: -0.493301379 | H191: -0.04992731543
A192: 87.5 | B192: 12605.91839 | C192: -1 | D192: 8.456940094 | E192: -566.7372829 | F192: 566.8003773 | G192: -0.4793396836 | H192: -0.0473094192
A193: 88 | B193: 12605.91839 | C193: -1 | D193: 8.217270252 | E193: -566.7609377 | F193: 566.8205042 | G193: -0.4657717267 | H193: -0.04482795571
A194: 88.5 | B194: 12605.91839 | C194: -1 | D194: 7.984384389 | E194: -566.7833516 | F194: 566.8395876 | G194: -0.4525865154 | H194: -0.04247586958
A195: 89 | B195: 12605.91839 | C195: -1 | D195: 7.758091131 | E195: -566.8045896 | F195: 566.8576812 | G195: -0.4397733549 | H195: -0.04024646652
A196: 89.5 | B196: 12605.91839 | C196: -1 | D196: 7.538204454 | E196: -566.8247128 | F196: 566.8748359 | G196: -0.4273218413 | H196: -0.03813339509
A197: 90 | B197: 12605.91839 | C197: -1 | D197: 7.324543533 | E197: -566.8437795 | F197: 566.8911 | G197: -0.4152218541 | H197: -0.03613062943
A198: 90.5 | B198: 12605.91839 | C198: -1 | D198: 7.116932606 | E198: -566.8618448 | F198: 566.9065195 | G198: -0.4034635493 | H198: -0.03423245278
A199: 91 | B199: 12605.91839 | C199: -1 | D199: 6.915200831 | E199: -566.878961 | F199: 566.9211378 | G199: -0.3920373523 | H199: -0.03243344186
A200: 91.5 | B200: 12605.91839 | C200: -1 | D200: 6.719182155 | E200: -566.8951778 | F200: 566.9349963 | G200: -0.380933951 | H200: -0.030728452
A201: 92 | B201: 12605.91839 | C201: -1 | D201: 6.52871518 | E201: -566.910542 | F201: 566.9481341 | G201: -0.3701442889 | H201: -0.029112603
A202: 92.5 | B202: 12605.91839 | C202: -1 | D202: 6.343643035 | E202: -566.9250983 | F202: 566.9605885 | G202: -0.3596595588 | H202: -0.02758126572
A203: 93 | B203: 12605.91839 | C203: -1 | D203: 6.163813256 | E203: -566.9388889 | F203: 566.9723947 | G203: -0.3494711962 | H203: -0.02613004933
... 598 more rows

Sheet Final Average Regression
A1: In-Labs | B1: Written | C1: Actual % | D1: Predicted % | F1: In-Lab | G1: Written | H1: Total Error | J1: Average Error/Student
A2: 202 | B2: 199.4988113 | C2: 76.72557658 | D2: =100*SUM(A2:B2*$F$2:$G$2/{200,320}) -> 89.40301356 | F2: 0.7 | G2: 0.3 | H2: =SUM((C2:C495-D2:D495)^2) -> 21006.09432 | J2: using Sum of Squares
A3: 204 | B3: 241.7988113 | C3: 93.95557658 | D3: =100*SUM(A3:B3*$F$2:$G$2/{200,320}) -> 94.06863856 | E3: Contribution | F3: =F2/SUM($F$2:$G$2) -> 0.7 | G3: =G2/SUM($F$2:$G$2) -> 0.3 | J3: =SQRT(H2/COUNT(A:A))/100 -> 0.06520924639
A4: 172 | B4: 219 | C4: 88.37569545 | D4: =100*SUM(A4:B4*$F$2:$G$2/{200,320}) -> 80.73125
A5: 204 | B5: 283 | C5: 98.77569545 | D5: =100*SUM(A5:B5*$F$2:$G$2/{200,320}) -> 97.93125
A6: 201 | B6: 202.5488113 | C6: 90.23057658 | D6: =100*SUM(A6:B6*$F$2:$G$2/{200,320}) -> 89.33895106
A7: 201 | B7: 221.6488113 | C7: 89.54057658 | D7: =100*SUM(A7:B7*$F$2:$G$2/{200,320}) -> 91.12957606
A8: 201 | B8: 197 | C8: 79.37569545 | D8: =100*SUM(A8:B8*$F$2:$G$2/{200,320}) -> 88.81875
A9: 168 | B9: 195 | C9: 81.47569545 | D9: =100*SUM(A9:B9*$F$2:$G$2/{200,320}) -> 77.08125
A10: 186 | B10: 184 | C10: 80.47569545 | D10: =100*SUM(A10:B10*$F$2:$G$2/{200,320}) -> 82.35
A11: 191 | B11: 252.3488113 | C11: 94.31057658 | D11: =100*SUM(A11:B11*$F$2:$G$2/{200,320}) -> 90.50770106
A12: 201 | B12: 240.5488113 | C12: 91.33057658 | D12: =100*SUM(A12:B12*$F$2:$G$2/{200,320}) -> 92.90145106
A13: 204 | B13: 253 | C13: 94.77569545 | D13: =100*SUM(A13:B13*$F$2:$G$2/{200,320}) -> 95.11875
A14: 194 | B14: 190 | C14: 79.07569545 | D14: =100*SUM(A14:B14*$F$2:$G$2/{200,320}) -> 85.7125
A15: 204 | B15: 218 | C15: 92.47569545 | D15: =100*SUM(A15:B15*$F$2:$G$2/{200,320}) -> 91.8375
A16: 153 | B16: 145 | C16: 55.77569545 | D16: =100*SUM(A16:B16*$F$2:$G$2/{200,320}) -> 67.14375
A17: 204 | B17: 238 | C17: 95.17569545 | D17: =100*SUM(A17:B17*$F$2:$G$2/{200,320}) -> 93.7125
A18: 175 | B18: 188.3488113 | C18: 80.01057658 | D18: =100*SUM(A18:B18*$F$2:$G$2/{200,320}) -> 78.90770106
A19: 200 | B19: 227.1488113 | C19: 90.89057658 | D19: =100*SUM(A19:B19*$F$2:$G$2/{200,320}) -> 91.29520106
A20: 200 | B20: 182 | C20: 80.67569545 | D20: =100*SUM(A20:B20*$F$2:$G$2/{200,320}) -> 87.0625
A21: 201 | B21: 278.8988113 | C21: 98.76557658 | D21: =100*SUM(A21:B21*$F$2:$G$2/{200,320}) -> 96.49676356
A22: 204 | B22: 248.0488113 | C22: 95.48057658 | D22: =100*SUM(A22:B22*$F$2:$G$2/{200,320}) -> 94.65457606
A23: 148 | B23: 48 | C23: 40.57569545 | D23: =100*SUM(A23:B23*$F$2:$G$2/{200,320}) -> 56.3
A24: 204 | B24: 291 | C24: 100.4756954 | D24: =100*SUM(A24:B24*$F$2:$G$2/{200,320}) -> 98.68125
A25: 70 | B25: 132.5988113 | C25: 68.13557658 | D25: =100*SUM(A25:B25*$F$2:$G$2/{200,320}) -> 36.93113856
A26: 204 | B26: 256.8488113 | C26: 93.46057658 | D26: =100*SUM(A26:B26*$F$2:$G$2/{200,320}) -> 95.47957606
A27: 191 | B27: 217.0488113 | C27: 86.68057658 | D27: =100*SUM(A27:B27*$F$2:$G$2/{200,320}) -> 87.19832606
A28: 204 | B28: 288 | C28: 99.77569545 | D28: =100*SUM(A28:B28*$F$2:$G$2/{200,320}) -> 98.4
A29: 202 | B29: 234.6488113 | C29: 94.44057658 | D29: =100*SUM(A29:B29*$F$2:$G$2/{200,320}) -> 92.69832606
A30: 30 | B30: 43 | C30: 28.27569545 | D30: =100*SUM(A30:B30*$F$2:$G$2/{200,320}) -> 14.53125
A31: 199 | B31: 199 | C31: 88.17569545 | D31: =100*SUM(A31:B31*$F$2:$G$2/{200,320}) -> 88.30625
A32: 195 | B32: 257.8988113 | C32: 95.96557658 | D32: =100*SUM(A32:B32*$F$2:$G$2/{200,320}) -> 92.42801356
A33: 204 | B33: 195 | C33: 85.67569545 | D33: =100*SUM(A33:B33*$F$2:$G$2/{200,320}) -> 89.68125
A34: 178 | B34: 198.3988113 | C34: 82.61557658 | D34: =100*SUM(A34:B34*$F$2:$G$2/{200,320}) -> 80.89988856
A35: 125 | B35: 144 | C35: 60.27569545 | D35: =100*SUM(A35:B35*$F$2:$G$2/{200,320}) -> 57.25
A36: 204 | B36: 253 | C36: 95.87569545 | D36: =100*SUM(A36:B36*$F$2:$G$2/{200,320}) -> 95.11875
A37: 171 | B37: 183.1488113 | C37: 79.39057658 | D37: =100*SUM(A37:B37*$F$2:$G$2/{200,320}) -> 77.02020106
A38: 190 | B38: 217 | C38: 89.47569545 | D38: =100*SUM(A38:B38*$F$2:$G$2/{200,320}) -> 86.84375
A39: 188 | B39: 189 | C39: 84.07569545 | D39: =100*SUM(A39:B39*$F$2:$G$2/{200,320}) -> 83.51875
A40: 201 | B40: 215.0988113 | C40: 87.08557658 | D40: =100*SUM(A40:B40*$F$2:$G$2/{200,320}) -> 90.51551356
A41: 202 | B41: 205 | C41: 90.87569545 | D41: =100*SUM(A41:B41*$F$2:$G$2/{200,320}) -> 89.91875
A42: 204 | B42: 212.1988113 | C42: 87.79557658 | D42: =100*SUM(A42:B42*$F$2:$G$2/{200,320}) -> 91.29363856 | F42: Predicted % > Actual % | I42: MaxDifference
A43: 204 | B43: 251.3988113 | C43: 95.91557658 | D43: =100*SUM(A43:B43*$F$2:$G$2/{200,320}) -> 94.96863856 | F43: =SUM(1*(D2:D495>C2:C495))/494 -> 0.4291497976 | I43: =MAX(ABS(C2:C495-D2:D495))/100 -> 0.3120443802
A44: 204 | B44: 256.5488113 | C44: 92.53057658 | D44: =100*SUM(A44:B44*$F$2:$G$2/{200,320}) -> 95.45145106
A45: 204 | B45: 281.9988113 | C45: 99.17557658 | D45: =100*SUM(A45:B45*$F$2:$G$2/{200,320}) -> 97.83738856 | F45: % Error | G45: CUM % | H45: % Students with that Error
A46: 194 | B46: 219.4988113 | C46: 91.12557658 | D46: =100*SUM(A46:B46*$F$2:$G$2/{200,320}) -> 88.47801356 | F46: 0 | G46: =SUM(1*(ABS(INT(D2:D495)-INT(C2:C495))<=F46))/494 -> 0.07085020243
A47: 204 | B47: 280 | C47: 99.47569545 | D47: =100*SUM(A47:B47*$F$2:$G$2/{200,320}) -> 97.65 | F47: 0 | G47: 0.07085020243 | H47: =G47 -> 0.07085020243
A48: 201 | B48: 249 | C48: 90.77569545 | D48: =100*SUM(A48:B48*$F$2:$G$2/{200,320}) -> 93.69375 | F48: 1 | G48: 0.3117408907 | H48: =G48-SUM($H$47:H47) -> 0.2408906883
A49: 200 | B49: 179.8988113 | C49: 61.86557658 | D49: =100*SUM(A49:B49*$F$2:$G$2/{200,320}) -> 86.86551356 | F49: 2 | G49: 0.5263157895 | H49: =G49-SUM($H$47:H48) -> 0.2145748988
A50: 178 | B50: 193.2488113 | C50: 79.00057658 | D50: =100*SUM(A50:B50*$F$2:$G$2/{200,320}) -> 80.41707606 | F50: 3 | G50: 0.6497975709 | H50: =G50-SUM($H$47:H49) -> 0.1234817814
A51: 200 | B51: 254.9988113 | C51: 94.77557658 | D51: =100*SUM(A51:B51*$F$2:$G$2/{200,320}) -> 93.90613856 | F51: 4 | G51: 0.7206477733 | H51: =G51-SUM($H$47:H50) -> 0.07085020243
A52: 204 | B52: 279.3488113 | C52: 99.71057658 | D52: =100*SUM(A52:B52*$F$2:$G$2/{200,320}) -> 97.58895106 | F52: 5 | G52: 0.7591093117 | H52: =G52-SUM($H$47:H51) -> 0.03846153846
A53: 204 | B53: 268.8488113 | C53: 98.36057658 | D53: =100*SUM(A53:B53*$F$2:$G$2/{200,320}) -> 96.60457606 | F53: 6 | G53: 0.8016194332 | H53: =G53-SUM($H$47:H52) -> 0.04251012146
A54: 190 | B54: 256.7488113 | C54: 93.65057658 | D54: =100*SUM(A54:B54*$F$2:$G$2/{200,320}) -> 90.57020106 | F54: 7 | G54: 0.8441295547 | H54: =G54-SUM($H$47:H53) -> 0.04251012146
A55: 168 | B55: 178 | C55: 66.97569545 | D55: =100*SUM(A55:B55*$F$2:$G$2/{200,320}) -> 75.4875 | F55: 8 | G55: 0.8582995951 | H55: =G55-SUM($H$47:H54) -> 0.01417004049
A56: 188 | B56: 212 | C56: 78.97569545 | D56: =100*SUM(A56:B56*$F$2:$G$2/{200,320}) -> 85.675 | F56: 9 | G56: 0.8805668016 | H56: =G56-SUM($H$47:H55) -> 0.02226720648
A57: 204 | B57: 264.0988113 | C57: 93.78557658 | D57: =100*SUM(A57:B57*$F$2:$G$2/{200,320}) -> 96.15926356 | F57: 10 | G57: 0.8947368421 | H57: =G57-SUM($H$47:H56) -> 0.01417004049
A58: 204 | B58: 181.3988113 | C58: 86.41557658 | D58: =100*SUM(A58:B58*$F$2:$G$2/{200,320}) -> 88.40613856 | F58: 11 | G58: 0.9190283401 | H58: =G58-SUM($H$47:H57) -> 0.02429149798
A59: 200 | B59: 189 | C59: 87.07569545 | D59: =100*SUM(A59:B59*$F$2:$G$2/{200,320}) -> 87.71875 | F59: 12 | G59: 0.9271255061 | H59: =G59-SUM($H$47:H58) -> 0.008097165992
A60: 184 | B60: 213.8488113 | C60: 88.96057658 | D60: =100*SUM(A60:B60*$F$2:$G$2/{200,320}) -> 84.44832606 | F60: 13 | G60: 0.9412955466 | H60: =G60-SUM($H$47:H59) -> 0.01417004049
A61: 201 | B61: 203.7488113 | C61: 90.65057658 | D61: =100*SUM(A61:B61*$F$2:$G$2/{200,320}) -> 89.45145106 | F61: 14 | G61: 0.951417004 | H61: =G61-SUM($H$47:H60) -> 0.01012145749
A62: 190 | B62: 159.3988113 | C62: 82.11557658 | D62: =100*SUM(A62:B62*$F$2:$G$2/{200,320}) -> 81.44363856 | F62: 15 | G62: 0.9534412955 | H62: =G62-SUM($H$47:H61) -> 0.002024291498
A63: 204 | B63: 242.4488113 | C63: 91.12057658 | D63: =100*SUM(A63:B63*$F$2:$G$2/{200,320}) -> 94.12957606 | F63: 16 | G63: 0.9615384615 | H63: =G63-SUM($H$47:H62) -> 0.008097165992
A64: 129 | B64: 117 | C64: 65.47569545 | D64: =100*SUM(A64:B64*$F$2:$G$2/{200,320}) -> 56.11875 | F64: 17 | G64: 0.9615384615 | H64: =G64-SUM($H$47:H63) -> 0
A65: 197 | B65: 220.1488113 | C65: 91.19057658 | D65: =100*SUM(A65:B65*$F$2:$G$2/{200,320}) -> 89.58895106 | F65: 18 | G65: 0.967611336 | H65: =G65-SUM($H$47:H64) -> 0.006072874494
A66: 204 | B66: 278 | C66: 98.17569545 | D66: =100*SUM(A66:B66*$F$2:$G$2/{200,320}) -> 97.4625 | F66: 19 | G66: 0.9736842105 | H66: =G66-SUM($H$47:H65) -> 0.006072874494
A67: 189 | B67: 176 | C67: 82.07569545 | D67: =100*SUM(A67:B67*$F$2:$G$2/{200,320}) -> 82.65 | F67: 20 | G67: 0.9736842105 | H67: =G67-SUM($H$47:H66) -> 0
A68: 195 | B68: 161.9988113 | C68: 76.87557658 | D68: =100*SUM(A68:B68*$F$2:$G$2/{200,320}) -> 83.43738856 | F68: 21 | G68: 0.9777327935 | H68: =G68-SUM($H$47:H67) -> 0.004048582996
A69: 202 | B69: 255.9488113 | C69: 96.07057658 | D69: =100*SUM(A69:B69*$F$2:$G$2/{200,320}) -> 94.69520106 | F69: 22 | G69: 0.983805668 | H69: =G69-SUM($H$47:H68) -> 0.006072874494
A70: 200 | B70: 236.5988113 | C70: 94.83557658 | D70: =100*SUM(A70:B70*$F$2:$G$2/{200,320}) -> 92.18113856 | F70: 23 | G70: 0.9858299595 | H70: =G70-SUM($H$47:H69) -> 0.002024291498
A71: 187 | B71: 211 | C71: 89.57569545 | D71: =100*SUM(A71:B71*$F$2:$G$2/{200,320}) -> 85.23125 | F71: 24 | G71: 0.987854251 | H71: =G71-SUM($H$47:H70) -> 0.002024291498
A72: 180 | B72: 242.2488113 | C72: 89.70057658 | D72: =100*SUM(A72:B72*$F$2:$G$2/{200,320}) -> 85.71082606 | F72: 25 | G72: 0.9939271255 | H72: =G72-SUM($H$47:H71) -> 0.006072874494
A73: 183 | B73: 170.9988113 | C73: 82.97557658 | D73: =100*SUM(A73:B73*$F$2:$G$2/{200,320}) -> 80.08113856 | F73: 26 | G73: 0.995951417 | H73: =G73-SUM($H$47:H72) -> 0.002024291498
A74: 191 | B74: 210 | C74: 78.87569545 | D74: =100*SUM(A74:B74*$F$2:$G$2/{200,320}) -> 86.5375 | F74: 27 | G74: 0.995951417 | H74: =G74-SUM($H$47:H73) -> 0
A75: 197 | B75: 181 | C75: 84.87569545 | D75: =100*SUM(A75:B75*$F$2:$G$2/{200,320}) -> 85.91875 | F75: 28 | G75: 0.9979757085 | H75: =G75-SUM($H$47:H74) -> 0.002024291498
A76: 204 | B76: 180 | C76: 82.57569545 | D76: =100*SUM(A76:B76*$F$2:$G$2/{200,320}) -> 88.275
A77: 147 | B77: 120 | C77: 69.17569545 | D77: =100*SUM(A77:B77*$F$2:$G$2/{200,320}) -> 62.7 | G77: SUM(H) | H77: =SUM(H47:H75) -> 0.9979757085
A78: 193 | B78: 163 | C78: 71.27569545 | D78: =100*SUM(A78:B78*$F$2:$G$2/{200,320}) -> 82.83125
A79: 204 | B79: 235.3988113 | C79: 90.91557658 | D79: =100*SUM(A79:B79*$F$2:$G$2/{200,320}) -> 93.46863856
A80: 204 | B80: 255.3488113 | C80: 96.31057658 | D80: =100*SUM(A80:B80*$F$2:$G$2/{200,320}) -> 95.33895106
A81: 200 | B81: 240.5488113 | C81: 94.23057658 | D81: =100*SUM(A81:B81*$F$2:$G$2/{200,320}) -> 92.55145106
A82: 198 | B82: 240.5988113 | C82: 87.03557658 | D82: =100*SUM(A82:B82*$F$2:$G$2/{200,320}) -> 91.85613856
A83: 201 | B83: 229.3988113 | C83: 93.51557658 | D83: =100*SUM(A83:B83*$F$2:$G$2/{200,320}) -> 91.85613856
A84: 204 | B84: 270.3988113 | C84: 99.31557658 | D84: =100*SUM(A84:B84*$F$2:$G$2/{200,320}) -> 96.74988856
A85: 169 | B85: 145 | C85: 44.47569545 | D85: =100*SUM(A85:B85*$F$2:$G$2/{200,320}) -> 72.74375
A86: 204 | B86: 270 | C86: 98.67569545 | D86: =100*SUM(A86:B86*$F$2:$G$2/{200,320}) -> 96.7125
A87: 204 | B87: 311.1488113 | C87: 102.7905766 | D87: =100*SUM(A87:B87*$F$2:$G$2/{200,320}) -> 100.5702011
A88: 197 | B88: 259.5988113 | C88: 84.93557658 | D88: =100*SUM(A88:B88*$F$2:$G$2/{200,320}) -> 93.28738856
A89: 204 | B89: 302 | C89: 102.2756954 | D89: =100*SUM(A89:B89*$F$2:$G$2/{200,320}) -> 99.7125
A90: 204 | B90: 239.2488113 | C90: 91.00057658 | D90: =100*SUM(A90:B90*$F$2:$G$2/{200,320}) -> 93.82957606
A91: 204 | B91: 297 | C91: 101.2756954 | D91: =100*SUM(A91:B91*$F$2:$G$2/{200,320}) -> 99.24375
A92: 201 | B92: 198 | C92: 87.87569545 | D92: =100*SUM(A92:B92*$F$2:$G$2/{200,320}) -> 88.9125
A93: 201 | B93: 253 | C93: 96.27569545 | D93: =100*SUM(A93:B93*$F$2:$G$2/{200,320}) -> 94.06875
A94: 200 | B94: 191.5488113 | C94: 86.83057658 | D94: =100*SUM(A94:B94*$F$2:$G$2/{200,320}) -> 87.95770106
A95: 190 | B95: 201.9488113 | C95: 84.07057658 | D95: =100*SUM(A95:B95*$F$2:$G$2/{200,320}) -> 85.43270106
A96: 204 | B96: 242.7488113 | C96: 91.05057658 | D96: =100*SUM(A96:B96*$F$2:$G$2/{200,320}) -> 94.15770106
A97: 199 | B97: 251 | C97: 95.97569545 | D97: =100*SUM(A97:B97*$F$2:$G$2/{200,320}) -> 93.18125
A98: 167 | B98: 150 | C98: 78.57569545 | D98: =100*SUM(A98:B98*$F$2:$G$2/{200,320}) -> 72.5125
A99: 204 | B99: 231 | C99: 91.87569545 | D99: =100*SUM(A99:B99*$F$2:$G$2/{200,320}) -> 93.05625
A100: 204 | B100: 209 | C100: 88.57569545 | D100: =100*SUM(A100:B100*$F$2:$G$2/{200,320}) -> 90.99375
A101: 204 | B101: 207.0988113 | C101: 92.28557658 | D101: =100*SUM(A101:B101*$F$2:$G$2/{200,320}) -> 90.81551356
A102: 200 | B102: 189.4488113 | C102: 84.72057658 | D102: =100*SUM(A102:B102*$F$2:$G$2/{200,320}) -> 87.76082606
A103: 204 | B103: 227.4988113 | C103: 89.92557658 | D103: =100*SUM(A103:B103*$F$2:$G$2/{200,320}) -> 92.72801356
A104: 200 | B104: 173 | C104: 79.57569545 | D104: =100*SUM(A104:B104*$F$2:$G$2/{200,320}) -> 86.21875
A105: 204 | B105: 226 | C105: 93.97569545 | D105: =100*SUM(A105:B105*$F$2:$G$2/{200,320}) -> 92.5875
A106: 54 | B106: 29 | C106: 28.57569545 | D106: =100*SUM(A106:B106*$F$2:$G$2/{200,320}) -> 21.61875
A107: 204 | B107: 248.3488113 | C107: 95.71057658 | D107: =100*SUM(A107:B107*$F$2:$G$2/{200,320}) -> 94.68270106
A108: 204 | B108: 229 | C108: 92.87569545 | D108: =100*SUM(A108:B108*$F$2:$G$2/{200,320}) -> 92.86875
A109: 204 | B109: 265.2988113 | C109: 90.90557658 | D109: =100*SUM(A109:B109*$F$2:$G$2/{200,320}) -> 96.27176356
A110: 201 | B110: 226 | C110: 89.27569545 | D110: =100*SUM(A110:B110*$F$2:$G$2/{200,320}) -> 91.5375
A111: 201 | B111: 208 | C111: 91.07569545 | D111: =100*SUM(A111:B111*$F$2:$G$2/{200,320}) -> 89.85
A112: 201 | B112: 303 | C112: 101.7756954 | D112: =100*SUM(A112:B112*$F$2:$G$2/{200,320}) -> 98.75625
A113: 204 | B113: 218.5488113 | C113: 90.13057658 | D113: =100*SUM(A113:B113*$F$2:$G$2/{200,320}) -> 91.88895106
A114: 204 | B114: 273 | C114: 99.47569545 | D114: =100*SUM(A114:B114*$F$2:$G$2/{200,320}) -> 96.99375
A115: 200 | B115: 217.0488113 | C115: 87.18057658 | D115: =100*SUM(A115:B115*$F$2:$G$2/{200,320}) -> 90.34832606
A116: 178 | B116: 121.7988113 | C116: 60.05557658 | D116: =100*SUM(A116:B116*$F$2:$G$2/{200,320}) -> 73.71863856
A117: 202 | B117: 248.2488113 | C117: 96.60057658 | D117: =100*SUM(A117:B117*$F$2:$G$2/{200,320}) -> 93.97332606
A118: 204 | B118: 245.6488113 | C118: 96.14057658 | D118: =100*SUM(A118:B118*$F$2:$G$2/{200,320}) -> 94.42957606
A119: 202 | B119: 233.1988113 | C119: 94.09557658 | D119: =100*SUM(A119:B119*$F$2:$G$2/{200,320}) -> 92.56238856
A120: 202 | B120: 229 | C120: 89.37569545 | D120: =100*SUM(A120:B120*$F$2:$G$2/{200,320}) -> 92.16875
A121: 199 | B121: 222.2988113 | C121: 86.20557658 | D121: =100*SUM(A121:B121*$F$2:$G$2/{200,320}) -> 90.49051356
A122: 204 | B122: 242 | C122: 94.77569545 | D122: =100*SUM(A122:B122*$F$2:$G$2/{200,320}) -> 94.0875
A123: 198 | B123: 211.9988113 | C123: 88.07557658 | D123: =100*SUM(A123:B123*$F$2:$G$2/{200,320}) -> 89.17488856
A124: 204 | B124: 263.1488113 | C124: 97.59057658 | D124: =100*SUM(A124:B124*$F$2:$G$2/{200,320}) -> 96.07020106
A125: 202 | B125: 224.5988113 | C125: 92.13557658 | D125: =100*SUM(A125:B125*$F$2:$G$2/{200,320}) -> 91.75613856
A126: 201 | B126: 284.1988113 | C126: 99.59557658 | D126: =100*SUM(A126:B126*$F$2:$G$2/{200,320}) -> 96.99363856
A127: 204 | B127: 252 | C127: 95.27569545 | D127: =100*SUM(A127:B127*$F$2:$G$2/{200,320}) -> 95.025
A128: 204 | B128: 284.9488113 | C128: 98.77057658 | D128: =100*SUM(A128:B128*$F$2:$G$2/{200,320}) -> 98.11395106
A129: 200 | B129: 217.4488113 | C129: 84.42057658 | D129: =100*SUM(A129:B129*$F$2:$G$2/{200,320}) -> 90.38582606
A130: 201 | B130: 303.5988113 | C130: 102.1355766 | D130: =100*SUM(A130:B130*$F$2:$G$2/{200,320}) -> 98.81238856
A131: 201 | B131: 240.7988113 | C131: 85.05557658 | D131: =100*SUM(A131:B131*$F$2:$G$2/{200,320}) -> 92.92488856
A132: 204 | B132: 165 | C132: 73.37569545 | D132: =100*SUM(A132:B132*$F$2:$G$2/{200,320}) -> 86.86875
A133: 201 | B133: 266.1988113 | C133: 94.89557658 | D133: =100*SUM(A133:B133*$F$2:$G$2/{200,320}) -> 95.30613856
A134: 201 | B134: 275.9488113 | C134: 98.57057658 | D134: =100*SUM(A134:B134*$F$2:$G$2/{200,320}) -> 96.22020106
A135: 204 | B135: 313 | C135: 103.6756954 | D135: =100*SUM(A135:B135*$F$2:$G$2/{200,320}) -> 100.74375
A136: 204 | B136: 222.5988113 | C136: 92.63557658 | D136: =100*SUM(A136:B136*$F$2:$G$2/{200,320}) -> 92.26863856
A137: 201 | B137: 253 | C137: 96.57569545 | D137: =100*SUM(A137:B137*$F$2:$G$2/{200,320}) -> 94.06875
A138: 177 | B138: 198 | C138: 85.77569545 | D138: =100*SUM(A138:B138*$F$2:$G$2/{200,320}) -> 80.5125
A139: 202 | B139: 209.0488113 | C139: 89.48057658 | D139: =100*SUM(A139:B139*$F$2:$G$2/{200,320}) -> 90.29832606
A140: 202 | B140: 270 | C140: 98.17569545 | D140: =100*SUM(A140:B140*$F$2:$G$2/{200,320}) -> 96.0125
A141: 154 | B141: 151 | C141: 66.07569545 | D141: =100*SUM(A141:B141*$F$2:$G$2/{200,320}) -> 68.05625
A142: 204 | B142: 272 | C142: 97.57569545 | D142: =100*SUM(A142:B142*$F$2:$G$2/{200,320}) -> 96.9
A143: 202 | B143: 260.3488113 | C143: 96.31057658 | D143: =100*SUM(A143:B143*$F$2:$G$2/{200,320}) -> 95.10770106
A144: 189 | B144: 184 | C144: 86.97569545 | D144: =100*SUM(A144:B144*$F$2:$G$2/{200,320}) -> 83.4
A145: 168 | B145: 135 | C145: 69.27569545 | D145: =100*SUM(A145:B145*$F$2:$G$2/{200,320}) -> 71.45625
A146: 204 | B146: 290.5488113 | C146: 100.4305766 | D146: =100*SUM(A146:B146*$F$2:$G$2/{200,320}) -> 98.63895106
A147: 204 | B147: 261 | C147: 93.87569545 | D147: =100*SUM(A147:B147*$F$2:$G$2/{200,320}) -> 95.86875
A148: 166 | B148: 153 | C148: 76.67569545 | D148: =100*SUM(A148:B148*$F$2:$G$2/{200,320}) -> 72.44375
A149: 204 | B149: 233.2988113 | C149: 93.90557658 | D149: =100*SUM(A149:B149*$F$2:$G$2/{200,320}) -> 93.27176356
A150: 180 | B150: 162 | C150: 79.27569545 | D150: =100*SUM(A150:B150*$F$2:$G$2/{200,320}) -> 78.1875
A151: 49 | B151: 96 | C151: 37.07569545 | D151: =100*SUM(A151:B151*$F$2:$G$2/{200,320}) -> 26.15
A152: 175 | B152: 208 | C152: 88.27569545 | D152: =100*SUM(A152:B152*$F$2:$G$2/{200,320}) -> 80.75
A153: 204 | B153: 221.4488113 | C153: 90.92057658 | D153: =100*SUM(A153:B153*$F$2:$G$2/{200,320}) -> 92.16082606
A154: 175 | B154: 117 | C154: 56.67569545 | D154: =100*SUM(A154:B154*$F$2:$G$2/{200,320}) -> 72.21875
A155: 154 | B155: 180.2488113 | C155: 73.60057658 | D155: =100*SUM(A155:B155*$F$2:$G$2/{200,320}) -> 70.79832606
A156: 199 | B156: 206.6488113 | C156: 87.64057658 | D156: =100*SUM(A156:B156*$F$2:$G$2/{200,320}) -> 89.02332606
A157: 204 | B157: 190.8488113 | C157: 84.26057658 | D157: =100*SUM(A157:B157*$F$2:$G$2/{200,320}) -> 89.29207606
A158: 204 | B158: 80 | C158: 52.97569545 | D158: =100*SUM(A158:B158*$F$2:$G$2/{200,320}) -> 78.9
A159: 195 | B159: 186 | C159: 83.77569545 | D159: =100*SUM(A159:B159*$F$2:$G$2/{200,320}) -> 85.6875
A160: 20 | B160: 53 | C160: 32.67569545 | D160: =100*SUM(A160:B160*$F$2:$G$2/{200,320}) -> 11.96875
A161: 204 | B161: 274 | C161: 99.57569545 | D161: =100*SUM(A161:B161*$F$2:$G$2/{200,320}) -> 97.0875
A162: 204 | B162: 248 | C162: 95.77569545 | D162: =100*SUM(A162:B162*$F$2:$G$2/{200,320}) -> 94.65
A163: 204 | B163: 276 | C163: 98.97569545 | D163: =100*SUM(A163:B163*$F$2:$G$2/{200,320}) -> 97.275
A164: 190 | B164: 200.5488113 | C164: 87.63057658 | D164: =100*SUM(A164:B164*$F$2:$G$2/{200,320}) -> 85.30145106
A165: 175 | B165: 192.2488113 | C165: 86.30057658 | D165: =100*SUM(A165:B165*$F$2:$G$2/{200,320}) -> 79.27332606
A166: 200 | B166: 166 | C166: 74.47569545 | D166: =100*SUM(A166:B166*$F$2:$G$2/{200,320}) -> 85.5625
A167: 114 | B167: 95 | C167: 66.07569545 | D167: =100*SUM(A167:B167*$F$2:$G$2/{200,320}) -> 48.80625
A168: 154 | B168: 185 | C168: 69.97569545 | D168: =100*SUM(A168:B168*$F$2:$G$2/{200,320}) -> 71.24375
A169: 199 | B169: 268.3988113 | C169: 84.51557658 | D169: =100*SUM(A169:B169*$F$2:$G$2/{200,320}) -> 94.81238856
A170: 125 | B170: 25 | C170: 42.07569545 | D170: =100*SUM(A170:B170*$F$2:$G$2/{200,320}) -> 46.09375
A171: 200 | B171: 179 | C171: 80.37569545 | D171: =100*SUM(A171:B171*$F$2:$G$2/{200,320}) -> 86.78125
A172: 151 | B172: 169 | C172: 81.07569545 | D172: =100*SUM(A172:B172*$F$2:$G$2/{200,320}) -> 68.69375
A173: 197 | B173: 251 | C173: 95.27569545 | D173: =100*SUM(A173:B173*$F$2:$G$2/{200,320}) -> 92.48125
A174: 204 | B174: 265 | C174: 97.87569545 | D174: =100*SUM(A174:B174*$F$2:$G$2/{200,320}) -> 96.24375
A175: 198 | B175: 199 | C175: 89.67569545 | D175: =100*SUM(A175:B175*$F$2:$G$2/{200,320}) -> 87.95625
A176: 100 | B176: 34 | C176: 33.37569545 | D176: =100*SUM(A176:B176*$F$2:$G$2/{200,320}) -> 38.1875
A177: 204 | B177: 195 | C177: 87.47569545 | D177: =100*SUM(A177:B177*$F$2:$G$2/{200,320}) -> 89.68125
A178: 201 | B178: 237 | C178: 88.97569545 | D178: =100*SUM(A178:B178*$F$2:$G$2/{200,320}) -> 92.56875
A179: 190 | B179: 223 | C179: 90.97569545 | D179: =100*SUM(A179:B179*$F$2:$G$2/{200,320}) -> 87.40625
A180: 199 | B180: 178 | C180: 84.67569545 | D180: =100*SUM(A180:B180*$F$2:$G$2/{200,320}) -> 86.3375
A181: 0 | B181: 17 | C181: 14.77569545 | D181: =100*SUM(A181:B181*$F$2:$G$2/{200,320}) -> 1.59375
A182: 204 | B182: 251.6988113 | C182: 94.34557658 | D182: =100*SUM(A182:B182*$F$2:$G$2/{200,320}) -> 94.99676356
A183: 204 | B183: 292.9488113 | C183: 100.5705766 | D183: =100*SUM(A183:B183*$F$2:$G$2/{200,320}) -> 98.86395106
A184: 87 | B184: 82 | C184: 52.27569545 | D184: =100*SUM(A184:B184*$F$2:$G$2/{200,320}) -> 38.1375
A185: 204 | B185: 258 | C185: 96.47569545 | D185: =100*SUM(A185:B185*$F$2:$G$2/{200,320}) -> 95.5875
A186: 204 | B186: 279.3488113 | C186: 100.0105766 | D186: =100*SUM(A186:B186*$F$2:$G$2/{200,320}) -> 97.58895106
A187: 0 | B187: 48 | C187: 22.27569545 | D187: =100*SUM(A187:B187*$F$2:$G$2/{200,320}) -> 4.5
A188: 185 | B188: 175 | C188: 83.27569545 | D188: =100*SUM(A188:B188*$F$2:$G$2/{200,320}) -> 81.15625
A189: 204 | B189: 202 | C189: 82.17569545 | D189: =100*SUM(A189:B189*$F$2:$G$2/{200,320}) -> 90.3375
A190: 204 | B190: 240 | C190: 86.37569545 | D190: =100*SUM(A190:B190*$F$2:$G$2/{200,320}) -> 93.9
A191: 196 | B191: 231 | C191: 91.27569545 | D191: =100*SUM(A191:B191*$F$2:$G$2/{200,320}) -> 90.25625
A192: 150 | B192: 184.2988113 | C192: 79.80557658 | D192: =100*SUM(A192:B192*$F$2:$G$2/{200,320}) -> 69.77801356
A193: 204 | B193: 273.7988113 | C193: 98.45557658 | D193: =100*SUM(A193:B193*$F$2:$G$2/{200,320}) -> 97.06863856
A194: 204 | B194: 235 | C194: 92.87569545 | D194: =100*SUM(A194:B194*$F$2:$G$2/{200,320}) -> 93.43125
A195: 165 | B195: 119 | C195: 75.57569545 | D195: =100*SUM(A195:B195*$F$2:$G$2/{200,320}) -> 68.90625
A196: 181 | B196: 194 | C196: 84.87569545 | D196: =100*SUM(A196:B196*$F$2:$G$2/{200,320}) -> 81.5375
A197: 193 | B197: 184.0988113 | C197: 82.58557658 | D197: =100*SUM(A197:B197*$F$2:$G$2/{200,320}) -> 84.80926356
A198: 201 | B198: 158 | C198: 79.97569545 | D198: =100*SUM(A198:B198*$F$2:$G$2/{200,320}) -> 85.1625
A199: 198 | B199: 170 | C199: 81.87569545 | D199: =100*SUM(A199:B199*$F$2:$G$2/{200,320}) -> 85.2375
A200: 204 | B200: 220.6988113 | C200: 84.04557658 | D200: =100*SUM(A200:B200*$F$2:$G$2/{200,320}) -> 92.09051356
... 295 more rows
